[Event "NY Presidents Day IM-B 2024"]
[Site "New York"]
[Date "2024.02.19"]
[Round "7.6"]
[White "Pang, Qi"]
[Black "Jimenez Fraga, Pedro Alejandro"]
[Result "1/2-1/2"]
[ECO "A05"]
[WhiteElo "2148"]
[BlackElo "2447"]
[Annotator "TA"]
[PlyCount "116"]
[EventDate "2024.02.14"]
[EventType "schev"]
[EventCountry "USA"]
[SourceTitle "playchess.com"]
[Source "ChessBase"]
[SourceQuality "1"]
[TimeControl "5400+30"]

{[%evp 15,115,-28,-37,-22,-31,-29,-24,-15,-5,-24,0,-7,-14,-20,-11,-16,0,-26,-16,-45,-50,-54,-59,-43,-46,-22,-40,-80,-69,-70,-27,-37,-29,-19,-10,-6,-5,-14,-9,-30,-47,-39,-37,-43,-52,-95,-31,-27,0,0,11,10,8,9,8,8,17,0,0,0,0,0,0,0,0,0,0,0,0,0,0,-10,-8,-10,-10,-10,-10,-18,-18,-23,-5,-5,-5,-8,-8,-8,-8,-8,-8,-8,-8,-8,-8,-8,-8,-8,-8,-8,-8,-8,-263,0]} 1. Nf3 {[%emt 0:01:04]} Nf6 {[%emt 0:00:11]} 2. d4 {[%emt 0:00:36]} g6 {[%emt 0:00:36]} 3. g3 {[%emt 0:01:02]} Bg7 {[%emt 0:00:20]} 4. Bg2 {[%emt 0:00:05]} O-O {[%emt 0:00:07]} 5. b3 {[%emt 0:00:07]} c5 {[%emt 0:00:32]} 6. O-O {[%emt 0:03:56]} cxd4 {[%emt 0:02:03]} 7. Nxd4 {[%emt 0:00:26]} d5 {[%emt 0:00:26]} 8. Bb2 {[%emt 0:00:24]} Re8 {[%emt 0:00:28]} 9. Nf3 {[%emt 0:02:20]} Nc6 {[%emt 0:00:19]} 10. Ne5 {[%emt 0:01:13]} Qc7 {[%emt 0:07:53]} 11. Nxc6 {[%emt 0:00:28] Black has an edge.} bxc6 {[%emt 0:00:02]} 12. c4 {[%emt 0:00:10]} Rb8 {[%emt 0:05:51]} 13. Qc1 {[%emt 0:00:43] And now cxd5 would win.} Qd6 {[%emt 0:07:00]} 14. Rd1 {[%emt 0:06:53][%cal Oe2e4]} e5 {[%emt 0:02:31]} 15. Nd2 {[%emt 0:00:31]} Qe6 {[%emt 0:01:49]} 16. Nf3 {[%emt 0:08:51]} d4 {[%emt 0:02:31]} 17. e3 {[%emt 0:02:13]} c5 {[%emt 0:11:47]} 18. exd4 {[%emt 0:00:06]} cxd4 {[%emt 0:00:20]} 19. Re1 {[%emt 0:03:36] [#] Strongly threatening Nxd4.} Qd6 {[%emt 0:04:21]} 20. c5 {[%emt 0:09:56]} Qc7 {[%emt 0:00:02]} 21. Nd2 {[%emt 0:00:13]} Be6 {[%emt 0:13:28]} 22. Nc4 {[%emt 0:05:02]} Nd5 {[%emt 0:09:46]} ({Much weaker is} 22... Qxc5 $6 23. Nxe5 Qxc1 24. Rexc1 $14) 23. Qd2 $1 {[%emt 0:12:17]} Red8 {[%emt 0:06:36]} (23... Nb4 {keeps more tension.} 24. Nd6 Red8 25. a3 Nc2) 24. Rac1 {[%emt 0:02:05][%cal Oc5c6]} Nc3 {[%emt 0:02:09]} 25. Bxc3 {[%emt 0:00:09]} dxc3 {[%emt 0:00:02]} 26. Qxc3 {[%emt 0:00:11][%cal Rc4e5]} Qxc5 {[%emt 0:00:13]} 27. Qa5 {[%emt 0:06:53]} Qxa5 {[%emt 0:00:49]} 28. Nxa5 {[%emt 0:00:04] Black must now prevent Nc6.} Rd2 {[%emt 0:00:06]} 29. Nc6 {[%emt 0:02:20]} Rb6 {[%emt 0:02:55]} 30. Nxa7 {[%emt 0:07:40] [#]} Rxa2 {[%emt 0:00:09]} (30... Ra6 $1 $17 {[%cal Ra6a7]} 31. Nb5 Raxa2 (31... Rdxa2 32. Nc7 $11)) 31. Nc6 $15 {[%emt 0:00:20]} Rxb3 {[%emt 0:00:28]} 32. Nd8 $1 {[%emt 0:03:27]} Ra7 {[%emt 0:05:23]} 33. Nxe6 {[%emt 0:00:17]} fxe6 {[%emt 0:00:01]} 34. Rc6 {[%emt 0:00:47]} Kf7 {[%emt 0:00:38]} 35. Bf1 {[%emt 0:00:56]} Rab7 {[%emt 0:01:12]} 36. Rd1 {[%emt 0:02:16]} R3b6 {[%emt 0:00:31]} 37. Rdd6 {[%emt 0:00:25]} Rxc6 {[%emt 0:00:01]} 38. Rxc6 $11 {[%emt 0:00:01][%mdl 4096] Endgame. KRB-KRB} e4 {[%emt 0:00:58]} 39. Bc4 {[%emt 0:00:26]} Re7 {[%emt 0:00:28]} 40. Bb3 {[%emt 0:00:51]} Bh6 {[%emt 0:01:03]} 41. Kg2 {[%emt 0:02:36]} Kf6 {[%emt 0:00:53]} 42. h3 {[%emt 0:01:04]} Ke5 {[%emt 0:00:22]} 43. g4 {[%emt 0:01:21]} Bd2 {[%emt 0:00:25]} 44. Ba2 {[%emt 0:02:00]} e3 {[%emt 0:03:52]} 45. fxe3 {[%emt 0:01:27]} Bxe3 {[%emt 0:00:02]} 46. Kg3 {[%emt 0:01:45]} g5 {[%emt 0:00:20]} 47. Bb3 {[%emt 0:01:30]} Bf4+ {[%emt 0:00:43]} 48. Kf3 {[%emt 0:00:30]} Re8 {[%emt 0:01:08]} 49. h4 {[%emt 0:01:04]} gxh4 {[%emt 0:01:33]} 50. Rxe6+ {[%emt 0:01:48]} Rxe6 {[%emt 0:00:09]} 51. Bxe6 {[%emt 0:00:02]} Kxe6 {[%emt 0:00:05]} (51... h3 $5 52. Ba2 h2 $14) 52. Kxf4 {[%emt 0:00:03] KPP-KP} h6 {[%emt 0:00:09]} 53. Kf3 {[%emt 0:00:03]} Ke5 {[%emt 0:00:25]} 54. Kg2 {[%emt 0:00:01]} Kf4 {[%emt 0:00:09]} 55. Kh1 {[%emt 0:00:03]} Kg3 {[%emt 0:00:31]} 56. Kg1 {[%emt 0:00:06]} h3 {[%emt 0:00:15]} 57. Kh1 {[%emt 0:00:05]} h2 {[%emt 0:00:27]} 58. g5 {[%emt 0:00:02]} hxg5 {[%emt 0:00:09] Weighted Error Value: White=0.06 (flawless) /Black=0.06 (flawless) .  Mistake:       	---       	Black=1      Inaccurate:     	White=4     	Black=2      OK:         	White=18    	Black=24     Best:        	White=5     	---        Strong:       	White=2     	---} 1/2-1/2

[Event "NY Presidents Day IM-B 2024"]
[Site "New York"]
[Date "2024.02.19"]
[Round "8.1"]
[White "Lee, Megan"]
[Black "Bortnyk, Mykola"]
[Result "0-1"]
[ECO "B42"]
[WhiteElo "2267"]
[BlackElo "2421"]
[Annotator "RC"]
[PlyCount "104"]
[EventDate "2024.02.14"]
[EventType "schev"]
[EventCountry "USA"]
[SourceTitle "playchess.com"]
[Source "ChessBase"]
[SourceQuality "1"]
[TimeControl "5400+30"]

1. e4 {[%emt 0:01:22]} c5 {[%emt 0:12:01]} 2. Nf3 {[%emt 0:00:05]} e6 {[%emt 0:00:14]} 3. d4 {[%emt 0:00:05]} cxd4 {[%emt 0:00:06]} 4. Nxd4 {[%emt 0:00:02]} a6 {[%emt 0:00:08]} 5. Bd3 {[%emt 0:00:19]} Bc5 {[%emt 0:00:17]} 6. Nb3 {[%emt 0:00:06]} Ba7 {[%emt 0:00:04]} 7. O-O {[%emt 0:00:49]} Nc6 {[%emt 0:00:18]} 8. Qg4 {[%emt 0:01:25]} Qf6 {[%emt 0:08:12]} 9. Nc3 {[%emt 0:02:39]} h5 {[%emt 0:04:30]} 10. Qf4 {[%emt 0:05:37]} Nge7 {[%emt 0:04:44]} 11. Qxf6 {[%emt 0:12:28]} gxf6 {[%emt 0:00:18]} 12. Bf4 {[%emt 0:02:47]} Ne5 {[%emt 0:11:51]} 13. h3 {[%emt 0:03:09]} b5 {[%emt 0:09:25]} 14. a3 {[%emt 0:07:09]} N7c6 {[%emt 0:00:50]} 15. a4 {[%emt 0:09:07]} b4 {[%emt 0:00:46]} 16. Ne2 {[%emt 0:03:47]} Bb7 {[%emt 0:01:38]} 17. Bh2 {[%emt 0:04:37]} Ke7 {[%emt 0:01:05]} 18. Kh1 {[%emt 0:09:16]} Rag8 {[%emt 0:07:39]} 19. f3 {[%emt 0:05:28]} Nxd3 {[%emt 0:05:41]} 20. cxd3 {[%emt 0:00:02]} Ne5 {[%emt 0:00:16]} 21. Na5 {[%emt 0:01:29]} Ba8 {[%emt 0:00:24]} 22. Rfd1 {[%emt 0:29:42]} Rc8 23. d4 {[%emt 0:00:00]} Nc4 {[%emt 0:01:35]} 24. Nxc4 {[%emt 0:00:00]} Rxc4 {[%emt 0:00:01]} 25. Rd2 {[%emt 0:00:00]} d5 {[%emt 0:00:34]} 26. b3 {[%emt 0:00:00]} Rcc8 {[%emt 0:00:34]} 27. e5 {[%emt 0:00:00]} f5 {[%emt 0:00:19]} 28. Bg1 {[%emt 0:00:00]} a5 {[%emt 0:00:23]} 29. Rc1 {[%emt 0:00:00]} Rxc1 {[%emt 0:00:22]} 30. Nxc1 {[%emt 0:00:00]} Rc8 {[%emt 0:00:06]} 31. Na2 {[%emt 0:00:00]} Bb7 {[%emt 0:00:58]} 32. Kh2 {[%emt 0:00:00]} f4 {[%emt 0:02:15]} 33. Bf2 {[%emt 0:00:00]} Kd7 {[%emt 0:00:03]} 34. Bh4 {[%emt 0:00:00]} Bc6 {[%emt 0:04:00]} 35. Bg5 {[%emt 0:00:00]} Bxa4 {[%emt 0:00:19]} 36. bxa4 {[%emt 0:00:00]} b3 {[%emt 0:00:01]} 37. Rb2 {[%emt 0:00:00]} bxa2 {[%emt 0:00:14]} 38. Rxa2 {[%emt 0:00:00]} Bxd4 {[%emt 0:00:58]} 39. Bxf4 {[%emt 0:00:00]} Rc4 {[%emt 0:00:12]} 40. g3 {[%emt 0:00:09]} Bc3 {[%emt 0:01:04]} 41. h4 {[%emt 0:00:55]} Kc6 {[%emt 0:00:24]} 42. Rc2 {[%emt 0:04:38]} d4 {[%emt 0:00:34]} 43. Bd2 {[%emt 0:01:17]} Kd5 {[%emt 0:00:27]} 44. g4 {[%emt 0:00:44]} hxg4 {[%emt 0:00:38]} 45. fxg4 {[%emt 0:00:01]} Ke4 {[%emt 0:00:43]} 46. Bg5 {[%emt 0:01:33]} d3 {[%emt 0:00:17]} 47. Rf2 {[%emt 0:00:27]} Bxe5+ {[%emt 0:00:08]} 48. Kg2 {[%emt 0:00:36]} f5 {[%emt 0:02:18]} 49. gxf5 {[%emt 0:00:22]} exf5 {[%emt 0:00:01]} 50. h5 {[%emt 0:00:21]} f4 {[%emt 0:00:38]} 51. h6 {[%emt 0:00:31]} Rc2 {[%emt 0:00:06]} 52. h7 {[%emt 0:00:54]} Bd4 {[%emt 0:00:19]} 0-1

[Event "NY Presidents Day IM-B 2024"]
[Site "New York"]
[Date "2024.02.19"]
[Round "8.2"]
[White "Rajesh, C.S."]
[Black "Lima, Darcy"]
[Result "1/2-1/2"]
[ECO "B76"]
[WhiteElo "2218"]
[BlackElo "2370"]
[Annotator "RC"]
[PlyCount "110"]
[EventDate "2024.02.14"]
[EventType "schev"]
[EventCountry "USA"]
[SourceTitle "playchess.com"]
[Source "ChessBase"]
[SourceQuality "1"]
[TimeControl "5400+30"]

1. Nf3 {[%emt 0:00:04]} c5 {[%emt 0:00:10]} 2. e4 {[%emt 0:01:02]} d6 {[%emt 0:01:27]} 3. d4 {[%emt 0:01:06]} cxd4 {[%emt 0:00:05]} 4. Nxd4 {[%emt 0:00:02]} Nf6 {[%emt 0:00:07]} 5. Nc3 {[%emt 0:00:06]} Nc6 {[%emt 0:00:51]} 6. Be2 {[%emt 0:01:21]} g6 {[%emt 0:04:24]} 7. Be3 {[%emt 0:01:35]} Bg7 {[%emt 0:00:06]} 8. f3 {[%emt 0:00:35]} O-O {[%emt 0:02:55]} 9. Qd2 {[%emt 0:00:05]} d5 {[%emt 0:01:32]} 10. Nxc6 {[%emt 0:04:36]} bxc6 {[%emt 0:00:59]} 11. exd5 {[%emt 0:00:24]} Nxd5 {[%emt 0:03:54]} 12. Nxd5 {[%emt 0:01:21]} cxd5 {[%emt 0:00:10]} 13. c3 {[%emt 0:01:31]} e5 {[%emt 0:06:49]} 14. O-O {[%emt 0:08:17]} Bb7 {[%emt 0:00:28]} 15. b4 {[%emt 0:13:38]} Re8 {[%emt 0:07:04]} 16. a4 {[%emt 0:10:49]} d4 {[%emt 0:14:53]} 17. Bg5 {[%emt 0:00:39]} Qd6 {[%emt 0:00:05]} 18. cxd4 {[%emt 0:06:51]} exd4 {[%emt 0:00:29]} 19. Bb5 {[%emt 0:04:35]} Rec8 {[%emt 0:03:04]} 20. Rfc1 {[%emt 0:10:56]} Be5 {[%emt 0:04:50]} 21. f4 {[%emt 0:01:32]} Bg7 {[%emt 0:00:07]} 22. Rab1 {[%emt 0:03:36]} h6 {[%emt 0:06:33]} 23. Bh4 {[%emt 0:00:08]} Be4 {[%emt 0:00:06]} 24. Rxc8+ {[%emt 0:08:50]} Rxc8 {[%emt 0:00:01]} 25. Bd3 {[%emt 0:00:06]} Bxd3 {[%emt 0:00:25]} 26. Qxd3 {[%emt 0:00:02]} Qxf4 {[%emt 0:00:14]} 27. Be1 {[%emt 0:01:03]} Qe3+ {[%emt 0:08:37]} 28. Qxe3 {[%emt 0:00:06]} dxe3 {[%emt 0:00:01]} 29. g3 {[%emt 0:00:35]} Kf8 {[%emt 0:18:27]} 30. b5 {[%emt 0:06:43]} Ke8 {[%emt 0:02:38]} 31. a5 {[%emt 0:00:39]} Kd7 {[%emt 0:05:42]} 32. Kg2 {[%emt 0:01:48]} Rc2+ {[%emt 0:00:46]} 33. Kf3 {[%emt 0:00:14]} Rxh2 {[%emt 0:00:05]} 34. Kxe3 {[%emt 0:01:54]} Be5 {[%emt 0:02:58]} 35. Kf3 {[%emt 0:01:17]} Ra2 {[%emt 0:00:38]} 36. b6 {[%emt 0:00:48]} axb6 {[%emt 0:00:33]} 37. Rxb6 {[%emt 0:00:57]} Ra3+ {[%emt 0:01:55]} 38. Kg2 {[%emt 0:00:02]} h5 {[%emt 0:01:36]} 39. Ra6 {[%emt 0:03:11]} Ra2+ {[%emt 0:01:38]} 40. Kf3 {[%emt 0:00:17]} Ra3+ {[%emt 0:00:02]} 41. Kg2 {[%emt 0:00:05]} Bd4 {[%emt 0:00:22]} 42. Bb4 {[%emt 0:00:06]} Ra2+ {[%emt 0:00:11]} 43. Kh3 {[%emt 0:00:26]} Bg1 {[%emt 0:00:29]} 44. Rd6+ {[%emt 0:00:54]} Kc8 {[%emt 0:00:55]} 45. Rd2 {[%emt 0:00:43]} Rxd2 {[%emt 0:01:32]} 46. Bxd2 {[%emt 0:00:02]} Bd4 {[%emt 0:00:17]} 47. g4 {[%emt 0:01:47]} hxg4+ {[%emt 0:00:02]} 48. Kxg4 {[%emt 0:00:03]} f6 {[%emt 0:00:03]} 49. Kf4 {[%emt 0:00:13]} Kb7 {[%emt 0:01:53]} 50. Ke4 {[%emt 0:00:01]} Bb2 {[%emt 0:00:09]} 51. Kd5 {[%emt 0:00:24]} Ka6 {[%emt 0:00:06]} 52. Ke6 {[%emt 0:00:10]} Kb5 {[%emt 0:00:28]} 53. Be1 {[%emt 0:00:11]} Ba1 {[%emt 0:02:11]} 54. Bh4 {[%emt 0:00:42]} Kxa5 {[%emt 0:00:09]} 55. Bxf6 {[%emt 0:02:00]} Bxf6 {[%emt 0:00:30]} 1/2-1/2

[Event "NY Presidents Day IM-B 2024"]
[Site "New York"]
[Date "2024.02.19"]
[Round "8.3"]
[White "Sun, Ryan"]
[Black "Jimenez Fraga, Pedro Alejandro"]
[Result "1-0"]
[ECO "D77"]
[WhiteElo "2217"]
[BlackElo "2447"]
[Annotator "RC"]
[PlyCount "129"]
[EventDate "2024.02.14"]
[EventType "schev"]
[EventCountry "USA"]
[SourceTitle "playchess.com"]
[Source "ChessBase"]
[SourceQuality "1"]
[TimeControl "5400+30"]

1. d4 {[%emt 0:01:31]} Nf6 {[%emt 0:00:13]} 2. Nf3 {[%emt 0:00:18]} g6 {[%emt 0:00:19]} 3. g3 {[%emt 0:00:13]} Bg7 {[%emt 0:00:12]} 4. Bg2 {[%emt 0:00:14]} O-O {[%emt 0:00:07]} 5. O-O {[%emt 0:00:10]} d5 {[%emt 0:00:12]} 6. c4 {[%emt 0:00:58]} dxc4 {[%emt 0:00:35]} 7. Na3 {[%emt 0:00:46]} Nc6 {[%emt 0:00:20]} 8. Nxc4 {[%emt 0:01:10]} Be6 {[%emt 0:00:08]} 9. b3 {[%emt 0:04:12]} Bd5 {[%emt 0:00:09]} 10. Bb2 {[%emt 0:00:44]} a5 {[%emt 0:00:43]} 11. Rc1 {[%emt 0:09:39]} Qb8 {[%emt 0:04:23]} 12. Nfe5 {[%emt 0:07:33]} Bxg2 {[%emt 0:22:45]} 13. Kxg2 {[%emt 0:00:07]} Nxe5 {[%emt 0:00:03]} 14. dxe5 {[%emt 0:01:52]} Rd8 {[%emt 0:00:07]} 15. Qc2 {[%emt 0:00:12]} Nd5 {[%emt 0:00:57]} 16. e6 {[%emt 0:08:46]} fxe6 {[%emt 0:00:56]} 17. Qe4 {[%emt 0:03:06]} Ra6 {[%emt 0:01:11]} 18. Bxg7 {[%emt 0:01:23]} Kxg7 {[%emt 0:00:02]} 19. Rfd1 {[%emt 0:04:12]} b5 {[%emt 0:07:24]} 20. Qe5+ {[%emt 0:03:57]} Kf7 {[%emt 0:02:19]} 21. Nd2 {[%emt 0:00:48]} Nf6 {[%emt 0:09:03]} 22. Nf3 {[%emt 0:10:42]} Rxd1 {[%emt 0:01:16]} 23. Rxd1 {[%emt 0:02:43]} Qb7 {[%emt 0:03:11]} 24. Kg1 {[%emt 0:01:17]} h6 {[%emt 0:12:25]} 25. Rc1 {[%emt 0:10:51]} Rd6 {[%emt 0:02:22]} 26. Qc3 {[%emt 0:00:51]} Qe4 {[%emt 0:04:16]} 27. Qe5 {[%emt 0:02:35]} Qb7 {[%emt 0:01:16]} 28. Rc5 {[%emt 0:04:39]} Rd1+ {[%emt 0:05:35]} 29. Kg2 {[%emt 0:00:21]} c6 {[%emt 0:08:33]} 30. Qc3 {[%emt 0:01:38]} Rd5 {[%emt 0:05:50]} 31. Ne5+ {[%emt 0:03:01]} Ke8 {[%emt 0:00:20]} 32. Nxg6 {[%emt 0:00:50]} Rxc5 {[%emt 0:00:55]} 33. Qxc5 {[%emt 0:00:06]} Qd7 {[%emt 0:00:11]} 34. Ne5 {[%emt 0:03:12]} Qd5+ {[%emt 0:00:39]} 35. Qxd5 {[%emt 0:00:06]} exd5 {[%emt 0:00:13]} 36. Nxc6 {[%emt 0:00:30]} Ne4 {[%emt 0:00:05]} 37. Nxa5 {[%emt 0:04:06]} Kd7 {[%emt 0:00:28]} 38. a3 {[%emt 0:01:50]} Nc3 {[%emt 0:09:47]} 39. Kf3 {[%emt 0:00:06]} Nb1 {[%emt 0:00:00]} 40. Ke3 {[%emt 0:02:37]} Nxa3 {[%emt 0:00:00]} 41. Kd4 {[%emt 0:01:00]} Kd6 {[%emt 0:00:00]} 42. Kc3 {[%emt 0:02:02]} e5 {[%emt 0:00:00]} 43. e3 {[%emt 0:01:26]} Nb1+ {[%emt 0:02:30]} 44. Kc2 {[%emt 0:00:05]} Na3+ {[%emt 0:00:00]} 45. Kc3 {[%emt 0:00:03]} Nb1+ {[%emt 0:00:00]} 46. Kc2 {[%emt 0:01:29]} Na3+ {[%emt 0:00:00]} 47. Kb2 {[%emt 0:00:03]} b4 {[%emt 0:00:00]} 48. Nb7+ {[%emt 0:00:02]} Ke6 {[%emt 0:00:00]} 49. g4 {[%emt 0:01:08]} Kf6 {[%emt 0:01:27]} 50. h4 {[%emt 0:00:05]} Nb5 {[%emt 0:00:16]} 51. Kc2 {[%emt 0:00:44]} e4 {[%emt 0:00:50]} 52. Nc5 {[%emt 0:00:53]} Na7 {[%emt 0:00:22]} 53. Kd2 {[%emt 0:01:37]} Nc6 {[%emt 0:00:29]} 54. Na6 {[%emt 0:00:42]} Ke5 {[%emt 0:00:46]} 55. Nc5 {[%emt 0:01:54]} Kd6 {[%emt 0:00:21]} 56. Nb7+ {[%emt 0:00:23]} Kc7 {[%emt 0:00:14]} 57. Nc5 {[%emt 0:00:01]} Kd6 {[%emt 0:00:06]} 58. Na6 {[%emt 0:00:25]} Ne5 {[%emt 0:01:13]} 59. g5 {[%emt 0:00:52]} hxg5 {[%emt 0:00:13]} 60. h5 {[%emt 0:00:11]} Ng4 {[%emt 0:02:13]} 61. Nxb4 {[%emt 0:00:12]} Kc5 {[%emt 0:00:00]} 62. Nc2 {[%emt 0:00:05]} Nh6 {[%emt 0:00:12]} 63. Kc3 {[%emt 0:02:46]} g4 {[%emt 0:00:23]} 64. Nd4 {[%emt 0:00:00]} Nf7 {[%emt 0:00:48]} 65. Nf5 {[%emt 0:00:00]} 1-0